[Event "Early-Titled-Tuesday-Blitz-April-23-2024"]
[Site "Chess.com"]
[Date "2024.04.23"]
[Round "9"]
[White "snowlord"]
[Black "MatyChess1"]
[Result "1-0"]
[WhiteElo "2921"]
[BlackElo "2703"]
[TimeControl "180+1"]
[EndTime "9:46:30 PDT"]
[Termination "snowlord won by resignation"]

1. d4 {[%clk 0:03:00.9]} 1... d5 {[%clk 0:02:59.8]} 2. c4 {[%clk 0:03:00.8]}
2... c6 {[%clk 0:03:00.1]} 3. Nf3 {[%clk 0:03:00.9]} 3... Nf6 {[%clk 0:03:00.7]}
4. Nbd2 {[%clk 0:03:01.1]} 4... e6 {[%clk 0:03:00.6]} 5. Qc2 {[%clk 0:03:00.8]}
5... Nbd7 {[%clk 0:02:16.5]} 6. g3 {[%clk 0:03:01.2]} 6... b6 {[%clk 0:02:07.6]}
7. Bg2 {[%clk 0:03:01.1]} 7... Bb7 {[%clk 0:02:07.8]} 8. O-O {[%clk 0:03:01.1]}
8... Be7 {[%clk 0:02:04.1]} 9. Rd1 {[%clk 0:02:51.4]} 9... O-O {[%clk
0:02:03.9]} 10. e4 {[%clk 0:02:51.6]} 10... Rc8 {[%clk 0:01:53.9]} 11. e5 {[%clk
0:02:48.3]} 11... Ne8 {[%clk 0:01:53.8]} 12. cxd5 {[%clk 0:02:48.8]} 12... cxd5
{[%clk 0:01:53.1]} 13. Qa4 {[%clk 0:02:48.9]} 13... a6 {[%clk 0:01:52.7]} 14.
Nf1 {[%clk 0:02:43.4]} 14... b5 {[%clk 0:01:52.9]} 15. Qb3 {[%clk 0:02:43.7]}
15... Nb6 {[%clk 0:01:47.9]} 16. h4 {[%clk 0:02:33.9]} 16... Nc7 {[%clk
0:01:45.9]} 17. Ne3 {[%clk 0:02:29.8]} 17... a5 {[%clk 0:01:44.9]} 18. h5 {[%clk
0:02:16.1]} 18... h6 {[%clk 0:01:40.7]} 19. Ng4 {[%clk 0:02:15.6]} 19... Re8
{[%clk 0:01:38.3]} 20. Qd3 {[%clk 0:02:00.8]} 20... Bf8 {[%clk 0:01:33.4]} 21.
Bxh6 {[%clk 0:01:58.6]} 21... Nd7 {[%clk 0:00:59.5]} 22. Ng5 {[%clk 0:01:49.9]}
22... g6 {[%clk 0:00:45.1]} 23. Nxf7 {[%clk 0:01:49.6]} 1-0

[Event "Early-Titled-Tuesday-Blitz-April-23-2024"]
[Site "Chess.com"]
[Date "2024.04.23"]
[Round "9"]
[White "jeetjain"]
[Black "Eliwood44"]
[Result "1-0"]
[WhiteElo "2614"]
[BlackElo "2464"]
[TimeControl "180+1"]
[EndTime "9:46:33 PDT"]
[Termination "jeetjain won by resignation"]

1. Nf3 {[%clk 0:03:00]} 1... d5 {[%clk 0:02:59.1]} 2. g3 {[%clk 0:02:58.6]} 2...
Nc6 {[%clk 0:02:58.9]} 3. Bg2 {[%clk 0:02:59.2]} 3... e5 {[%clk 0:02:58.9]} 4.
d3 {[%clk 0:02:59.8]} 4... Be7 {[%clk 0:02:58.4]} 5. O-O {[%clk 0:03:00.1]} 5...
Be6 {[%clk 0:02:57.6]} 6. e4 {[%clk 0:02:59.9]} 6... dxe4 {[%clk 0:02:57.6]} 7.
dxe4 {[%clk 0:03:00.1]} 7... Qxd1 {[%clk 0:02:57.7]} 8. Rxd1 {[%clk 0:03:01]}
8... f6 {[%clk 0:02:57.1]} 9. c3 {[%clk 0:03:01.1]} 9... a5 {[%clk 0:02:54.7]}
10. a4 {[%clk 0:03:00.2]} 10... Bc5 {[%clk 0:02:54.5]} 11. Na3 {[%clk
0:02:57.6]} 11... Rd8 {[%clk 0:02:51.5]} 12. Rxd8+ {[%clk 0:02:56.6]} 12... Kxd8
{[%clk 0:02:51.5]} 13. Nb5 {[%clk 0:02:54.8]} 13... Kc8 {[%clk 0:02:46.5]} 14.
h4 {[%clk 0:02:50.8]} 14... h5 {[%clk 0:02:46.1]} 15. Ne1 {[%clk 0:02:45.3]}
15... Nh6 {[%clk 0:02:42.1]} 16. Nd3 {[%clk 0:02:44.8]} 16... Bb6 {[%clk
0:02:42.1]} 17. Be3 {[%clk 0:02:44]} 17... Bxe3 {[%clk 0:02:41.6]} 18. fxe3
{[%clk 0:02:44.9]} 18... Ng4 {[%clk 0:02:42.1]} 19. Nc5 {[%clk 0:02:42.4]} 19...
Bc4 {[%clk 0:02:36.1]} 20. b3 {[%clk 0:02:37.7]} 20... Bf7 {[%clk 0:02:32.4]}
21. Bh3 {[%clk 0:02:35.3]} 21... b6 {[%clk 0:02:31.2]} 22. Na6 {[%clk
0:02:33.5]} 22... Kb7 {[%clk 0:02:28.5]} 23. Naxc7 {[%clk 0:02:31.1]} 23... Nxe3
{[%clk 0:02:25.7]} 24. c4 {[%clk 0:02:29.8]} 24... Rd8 {[%clk 0:02:18]} 25. Nd5
{[%clk 0:02:27.9]} 25... Bxd5 {[%clk 0:02:17.6]} 26. exd5 {[%clk 0:02:27.1]}
26... Nb4 {[%clk 0:02:15.7]} 27. Re1 {[%clk 0:02:18.6]} 27... Nec2 {[%clk
0:02:15.1]} 28. Rf1 {[%clk 0:02:15.4]} 28... Nd4 {[%clk 0:02:12.4]} 29. Nxd4
{[%clk 0:02:13.7]} 29... exd4 {[%clk 0:02:13.3]} 30. Rd1 {[%clk 0:02:14.1]}
30... Re8 {[%clk 0:02:13.1]} 31. Rxd4 {[%clk 0:02:12.5]} 31... Re3 {[%clk
0:02:12.7]} 32. Kh2 {[%clk 0:01:53.1]} 32... Kc7 {[%clk 0:02:10.9]} 33. d6+
{[%clk 0:01:52.7]} 33... Kd8 {[%clk 0:02:10.8]} 34. d7 {[%clk 0:01:53.1]} 34...
Re2+ {[%clk 0:01:54.6]} 35. Kg1 {[%clk 0:01:47.6]} 35... Re3 {[%clk 0:01:54.4]}
36. Rd6 {[%clk 0:01:44.1]} 36... Rxg3+ {[%clk 0:01:50.5]} 37. Kh2 {[%clk
0:01:43.7]} 37... Rd3 {[%clk 0:01:49.2]} 38. Rxb6 {[%clk 0:01:41.4]} 38... Rd2+
{[%clk 0:01:49.4]} 39. Kg1 {[%clk 0:01:41]} 39... g5 {[%clk 0:01:38]} 40. Rb8+
{[%clk 0:01:39.5]} 40... Ke7 {[%clk 0:01:34.7]} 41. Re8+ {[%clk 0:01:38.9]}
41... Kf7 {[%clk 0:01:35.2]} 42. d8=Q {[%clk 0:01:38.3]} 1-0

[Event "Early-Titled-Tuesday-Blitz-April-23-2024"]
[Site "Chess.com"]
[Date "2024.04.23"]
[Round "9"]
[White "BallottiLuca"]
[Black "CMButgood"]
[Result "1-0"]
[WhiteElo "2387"]
[BlackElo "2180"]
[TimeControl "180+1"]
[EndTime "9:46:53 PDT"]
[Termination "BallottiLuca won by checkmate"]

1. e4 {[%clk 0:03:00.9]} 1... c5 {[%clk 0:02:48.2]} 2. b4 {[%clk 0:03:00.4]}
2... cxb4 {[%clk 0:02:47.6]} 3. a3 {[%clk 0:02:59]} 3... d5 {[%clk 0:02:45.7]}
4. exd5 {[%clk 0:02:57.8]} 4... Nf6 {[%clk 0:02:46]} 5. axb4 {[%clk 0:02:54.8]}
5... Nxd5 {[%clk 0:02:46.1]} 6. b5 {[%clk 0:02:53.5]} 6... e5 {[%clk 0:02:44.8]}
7. Ba3 {[%clk 0:02:51.7]} 7... Bxa3 {[%clk 0:02:42.7]} 8. Rxa3 {[%clk
0:02:52.5]} 8... O-O {[%clk 0:02:42.9]} 9. Be2 {[%clk 0:02:39.6]} 9... Bf5
{[%clk 0:02:38.9]} 10. Nf3 {[%clk 0:02:24.9]} 10... Nd7 {[%clk 0:02:38.4]} 11.
O-O {[%clk 0:02:24.6]} 11... Qc7 {[%clk 0:02:36.9]} 12. c4 {[%clk 0:02:20]}
12... Nb4 {[%clk 0:02:33.1]} 13. d4 {[%clk 0:01:59.2]} 13... Nc2 {[%clk
0:02:29.3]} 14. Rc3 {[%clk 0:01:50.2]} 14... Nxd4 {[%clk 0:02:23]} 15. Nxd4
{[%clk 0:01:50.2]} 15... exd4 {[%clk 0:02:22.4]} 16. Rg3 {[%clk 0:01:45.9]}
16... Rfe8 {[%clk 0:02:13.8]} 17. Qxd4 {[%clk 0:01:42.1]} 17... Bg6 {[%clk
0:01:35.1]} 18. Nc3 {[%clk 0:01:40.3]} 18... Nf6 {[%clk 0:01:30.5]} 19. Bf3
{[%clk 0:01:24.9]} 19... a5 {[%clk 0:01:20.4]} 20. h4 {[%clk 0:01:20.2]} 20...
Rad8 {[%clk 0:01:14.2]} 21. Nd5 {[%clk 0:01:20.2]} 21... Nxd5 {[%clk 0:01:13.7]}
22. Bxd5 {[%clk 0:01:21.1]} 22... h5 {[%clk 0:01:07.6]} 23. Rxg6 {[%clk
0:01:17.5]} 23... Rxd5 {[%clk 0:00:58.5]} 24. Qxg7# {[%clk 0:01:16.4]} 1-0

[Event "Early-Titled-Tuesday-Blitz-April-23-2024"]
[Site "Chess.com"]
[Date "2024.04.23"]
[Round "9"]
[White "mortngabriel"]
[Black "jinxy2009"]
[Result "1-0"]
[WhiteElo "2455"]
[BlackElo "2309"]
[TimeControl "180+1"]
[EndTime "9:46:59 PDT"]
[Termination "mortngabriel won by resignation"]

1. e4 {[%clk 0:03:00.9]} 1... e5 {[%clk 0:02:58.7]} 2. f4 {[%clk 0:02:56.4]}
2... Bc5 {[%clk 0:02:54]} 3. Nf3 {[%clk 0:02:55.3]} 3... d6 {[%clk 0:02:54.4]}
4. Nc3 {[%clk 0:02:55.9]} 4... Nc6 {[%clk 0:02:54.5]} 5. Bc4 {[%clk 0:02:55.3]}
5... Nf6 {[%clk 0:02:47.6]} 6. d3 {[%clk 0:02:55.1]} 6... O-O {[%clk 0:02:47.2]}
7. Na4 {[%clk 0:02:49.8]} 7... Bb6 {[%clk 0:02:32.6]} 8. Nxb6 {[%clk 0:02:49.5]}
8... axb6 {[%clk 0:02:33.1]} 9. O-O {[%clk 0:02:49.2]} 9... Qe7 {[%clk
0:02:24.1]} 10. fxe5 {[%clk 0:02:12.3]} 10... dxe5 {[%clk 0:02:17.8]} 11. Kh1
{[%clk 0:01:56.1]} 11... h6 {[%clk 0:02:13.7]} 12. Nh4 {[%clk 0:01:52.2]} 12...
Na5 {[%clk 0:02:08.8]} 13. Ng6 {[%clk 0:01:50.9]} 13... Qc5 {[%clk 0:02:03.6]}
14. Nxf8 {[%clk 0:01:48.5]} 14... Nxc4 {[%clk 0:01:53.6]} 15. dxc4 {[%clk
0:01:47.2]} 15... Bg4 {[%clk 0:01:14.1]} 16. Nd7 {[%clk 0:01:17.8]} 16... Qe7
{[%clk 0:00:35.9]} 17. Nxf6+ {[%clk 0:01:16.3]} 1-0

[Event "Early-Titled-Tuesday-Blitz-April-23-2024"]
[Site "Chess.com"]
[Date "2024.04.23"]
[Round "9"]
[White "ValentinDragnev"]
[Black "SlavenPastar"]
[Result "1-0"]
[WhiteElo "2749"]
[BlackElo "2630"]
[TimeControl "180+1"]
[EndTime "9:47:03 PDT"]
[Termination "ValentinDragnev won by resignation"]

1. d4 {[%clk 0:03:00.3]} 1... b6 {[%clk 0:03:00.5]} 2. e4 {[%clk 0:02:59.5]}
2... Bb7 {[%clk 0:03:01.2]} 3. Bd3 {[%clk 0:02:58.3]} 3... Nf6 {[%clk
0:03:01.8]} 4. Qe2 {[%clk 0:02:52.2]} 4... e6 {[%clk 0:03:02.4]} 5. Nf3 {[%clk
0:02:50.2]} 5... d5 {[%clk 0:03:03]} 6. e5 {[%clk 0:02:49]} 6... Ne4 {[%clk
0:03:03.5]} 7. O-O {[%clk 0:02:44.2]} 7... Be7 {[%clk 0:03:03.4]} 8. Ne1 {[%clk
0:02:40.5]} 8... h6 {[%clk 0:02:47.7]} 9. c3 {[%clk 0:02:40.2]} 9... O-O {[%clk
0:02:28.9]} 10. f3 {[%clk 0:02:20.6]} 10... Ng5 {[%clk 0:02:26.2]} 11. Nd2
{[%clk 0:02:21.2]} 11... f5 {[%clk 0:02:18.3]} 12. exf6 {[%clk 0:02:16.3]} 12...
Rxf6 {[%clk 0:02:17.9]} 13. f4 {[%clk 0:02:11.5]} 13... Nf7 {[%clk 0:02:09.3]}
14. Ndf3 {[%clk 0:02:11.5]} 14... Bd6 {[%clk 0:02:04.2]} 15. Ne5 {[%clk
0:02:06.3]} 15... Nxe5 {[%clk 0:02:02.3]} 16. dxe5 {[%clk 0:01:56.3]} 16... Bc5+
{[%clk 0:02:02.1]} 17. Kh1 {[%clk 0:01:50.8]} 17... Rf8 {[%clk 0:02:01.4]} 18.
Qg4 {[%clk 0:01:48.1]} 18... Qe8 {[%clk 0:01:51.7]} 19. b4 {[%clk 0:01:45.5]}
19... Be7 {[%clk 0:01:25]} 20. Qxe6+ {[%clk 0:01:45.5]} 20... Qf7 {[%clk
0:01:22.4]} 21. Qg4 {[%clk 0:01:34.2]} 21... Bc8 {[%clk 0:01:14.4]} 22. f5
{[%clk 0:01:31.8]} 22... Nc6 {[%clk 0:01:12.4]} 23. Qg3 {[%clk 0:01:27.3]} 23...
Qh5 {[%clk 0:01:06.1]} 24. f6 {[%clk 0:01:21]} 1-0

[Event "Early-Titled-Tuesday-Blitz-April-23-2024"]
[Site "Chess.com"]
[Date "2024.04.23"]
[Round "9"]
[White "Nf3c5"]
[Black "GlennTipton"]
[Result "1-0"]
[WhiteElo "2645"]
[BlackElo "2495"]
[TimeControl "180+1"]
[EndTime "9:47:04 PDT"]
[Termination "Nf3c5 won by resignation"]

1. e4 {[%clk 0:03:00.9]} 1... c5 {[%clk 0:02:58.5]} 2. Nc3 {[%clk 0:02:58.7]}
2... e6 {[%clk 0:02:57.7]} 3. d4 {[%clk 0:02:54.1]} 3... cxd4 {[%clk 0:02:57.4]}
4. Qxd4 {[%clk 0:02:55]} 4... Nc6 {[%clk 0:02:57.8]} 5. Qd3 {[%clk 0:02:53.9]}
5... a6 {[%clk 0:02:57.7]} 6. Bf4 {[%clk 0:02:53.7]} 6... b5 {[%clk 0:02:51.3]}
7. O-O-O {[%clk 0:02:50.7]} 7... Qa5 {[%clk 0:02:49.4]} 8. Kb1 {[%clk
0:02:46.2]} 8... b4 {[%clk 0:02:48.5]} 9. Nd5 {[%clk 0:02:42.5]} 9... exd5
{[%clk 0:02:47.4]} 10. exd5 {[%clk 0:02:43.1]} 10... Nce7 {[%clk 0:02:46.1]} 11.
d6 {[%clk 0:02:31.6]} 11... Ng6 {[%clk 0:02:41.7]} 12. Qe4+ {[%clk 0:02:30.3]}
12... Kd8 {[%clk 0:02:37.5]} 13. Qxa8 {[%clk 0:02:05.6]} 13... Nxf4 {[%clk
0:02:36.2]} 14. Nf3 {[%clk 0:02:05.8]} 14... Nf6 {[%clk 0:02:28.9]} 15. Bc4
{[%clk 0:02:02.8]} 15... Ne6 {[%clk 0:02:21.4]} 16. Rhe1 {[%clk 0:01:59]} 16...
Qc5 {[%clk 0:02:00.4]} 17. Bxa6 {[%clk 0:01:50.5]} 17... Bxd6 {[%clk 0:01:19.8]}
18. Rxd6 {[%clk 0:01:42.4]} 18... Qxd6 {[%clk 0:01:05]} 19. Qxc8+ {[%clk
0:01:39.3]} 19... Ke7 {[%clk 0:01:04.6]} 20. Qxh8 {[%clk 0:01:39.3]} 20... Qxa6
{[%clk 0:01:04.2]} 21. Qxg7 {[%clk 0:01:33.3]} 21... b3 {[%clk 0:00:55.7]} 22.
axb3 {[%clk 0:01:20]} 22... Qa5 {[%clk 0:00:55.3]} 23. Qg3 {[%clk 0:01:11.1]}
1-0

[Event "Early-Titled-Tuesday-Blitz-April-23-2024"]
[Site "Chess.com"]
[Date "2024.04.23"]
[Round "9"]
[White "viktorgen2021"]
[Black "zurzan"]
[Result "1-0"]
[WhiteElo "2468"]
[BlackElo "2139"]
[TimeControl "180+1"]
[EndTime "9:47:07 PDT"]
[Termination "viktorgen2021 won by resignation"]

1. d4 {[%clk 0:03:00.9]} 1... Nf6 {[%clk 0:02:58.7]} 2. Nf3 {[%clk 0:03:01.1]}
2... g6 {[%clk 0:02:59.1]} 3. g3 {[%clk 0:03:01.7]} 3... Bg7 {[%clk 0:02:59.5]}
4. Bg2 {[%clk 0:03:02.6]} 4... O-O {[%clk 0:02:59.8]} 5. O-O {[%clk 0:03:03.5]}
5... d6 {[%clk 0:03:00.2]} 6. a4 {[%clk 0:03:03.9]} 6... c5 {[%clk 0:03:00.3]}
7. d5 {[%clk 0:03:03.7]} 7... a6 {[%clk 0:02:58.5]} 8. Nc3 {[%clk 0:03:04.1]}
8... e6 {[%clk 0:02:57.7]} 9. e4 {[%clk 0:03:01.2]} 9... exd5 {[%clk 0:02:57.3]}
10. exd5 {[%clk 0:03:02.1]} 10... Nbd7 {[%clk 0:02:56.4]} 11. Re1 {[%clk
0:03:01.6]} 11... Re8 {[%clk 0:02:56]} 12. Bf4 {[%clk 0:03:01.4]} 12... Rxe1+
{[%clk 0:02:54.5]} 13. Qxe1 {[%clk 0:03:02.3]} 13... Nb6 {[%clk 0:02:49.9]} 14.
a5 {[%clk 0:03:00.3]} 14... Nbxd5 {[%clk 0:02:35.3]} 15. Nxd5 {[%clk 0:02:48.5]}
15... Nxd5 {[%clk 0:02:34.7]} 16. Bg5 {[%clk 0:02:48.9]} 16... f6 {[%clk
0:02:22.1]} 17. Rd1 {[%clk 0:02:46.2]} 17... fxg5 {[%clk 0:02:14.6]} 18. Rxd5
{[%clk 0:02:46]} 18... g4 {[%clk 0:02:06.7]} 19. Ng5 {[%clk 0:02:39.8]} 19... h6
{[%clk 0:02:01.8]} 20. Ne4 {[%clk 0:02:06.7]} 20... Bf5 {[%clk 0:01:27.8]} 21.
Nxd6 {[%clk 0:02:02.7]} 21... Qf6 {[%clk 0:01:08]} 22. Nxf5 {[%clk 0:01:57.6]}
22... gxf5 {[%clk 0:01:07.7]} 23. Rd7 {[%clk 0:01:58.2]} 23... Qxb2 {[%clk
0:00:55.4]} 24. Bd5+ {[%clk 0:01:55.8]} 24... Kh8 {[%clk 0:00:54.6]} 25. Rxb7
{[%clk 0:01:41.9]} 25... Qa1 {[%clk 0:00:49.5]} 26. Rb1 {[%clk 0:01:41.7]} 1-0

[Event "Early-Titled-Tuesday-Blitz-April-23-2024"]
[Site "Chess.com"]
[Date "2024.04.23"]
[Round "9"]
[White "scarabee43"]
[Black "Alexchess1984"]
[Result "1-0"]
[WhiteElo "2832"]
[BlackElo "2661"]
[TimeControl "180+1"]
[EndTime "9:47:27 PDT"]
[Termination "scarabee43 won by resignation"]

1. Nf3 {[%clk 0:03:00.9]} 1... e6 {[%clk 0:02:59.9]} 2. c4 {[%clk 0:03:00.6]}
2... f5 {[%clk 0:03:00.2]} 3. Nc3 {[%clk 0:03:00.4]} 3... Nf6 {[%clk 0:03:00.7]}
4. b3 {[%clk 0:03:00.1]} 4... Be7 {[%clk 0:03:00.5]} 5. Bb2 {[%clk 0:03:00.2]}
5... c6 {[%clk 0:02:59.2]} 6. g3 {[%clk 0:02:59.8]} 6... O-O {[%clk 0:02:59.3]}
7. Bg2 {[%clk 0:03:00.3]} 7... d6 {[%clk 0:02:57.2]} 8. O-O {[%clk 0:02:56.3]}
8... Qe8 {[%clk 0:02:57.4]} 9. Qc2 {[%clk 0:02:55.3]} 9... e5 {[%clk 0:02:55.9]}
10. d3 {[%clk 0:02:53.4]} 10... Kh8 {[%clk 0:02:54.9]} 11. b4 {[%clk 0:02:53]}
11... Be6 {[%clk 0:02:51.6]} 12. b5 {[%clk 0:02:49.3]} 12... Qh5 {[%clk
0:02:46.2]} 13. a4 {[%clk 0:02:48]} 13... Nbd7 {[%clk 0:02:45.4]} 14. a5 {[%clk
0:02:45.5]} 14... Rac8 {[%clk 0:02:39.4]} 15. a6 {[%clk 0:02:42]} 15... bxa6
{[%clk 0:02:39.8]} 16. bxc6 {[%clk 0:02:39.4]} 16... Nb8 {[%clk 0:02:38.4]} 17.
d4 {[%clk 0:02:30]} 17... e4 {[%clk 0:02:21.2]} 18. d5 {[%clk 0:02:30]} 18...
exf3 {[%clk 0:02:17.8]} 19. Bxf3 {[%clk 0:02:29.1]} 19... Ng4 {[%clk 0:02:18]}
20. Bxg4 {[%clk 0:02:29.3]} 20... fxg4 {[%clk 0:02:10]} 21. dxe6 {[%clk
0:02:29.3]} 21... Rxc6 {[%clk 0:02:05.6]} 22. Qe4 {[%clk 0:02:25.5]} 22... Bf6
{[%clk 0:01:49.3]} 23. Rab1 {[%clk 0:02:11.8]} 23... Rfc8 {[%clk 0:01:47]} 24.
Nd5 {[%clk 0:02:08.8]} 24... Bxb2 {[%clk 0:01:38.7]} 25. Rxb2 {[%clk 0:02:09]}
25... Re8 {[%clk 0:01:17.8]} 26. Rb7 {[%clk 0:01:51.4]} 26... Qe5 {[%clk
0:01:11.1]} 27. Qxg4 {[%clk 0:01:43.4]} 27... Rcc8 {[%clk 0:00:58.1]} 28. f4
{[%clk 0:01:41.4]} 28... h5 {[%clk 0:00:19.5]} 29. Qg6 {[%clk 0:01:38.9]} 29...
Qd4+ {[%clk 0:00:19.6]} 30. e3 {[%clk 0:01:38.4]} 1-0

[Event "Early-Titled-Tuesday-Blitz-April-23-2024"]
[Site "Chess.com"]
[Date "2024.04.23"]
[Round "9"]
[White "chesslh93"]
[Black "Alenzer"]
[Result "0-1"]
[WhiteElo "2362"]
[BlackElo "2235"]
[TimeControl "180+1"]
[EndTime "9:47:29 PDT"]
[Termination "Alenzer won on time"]

1. e4 {[%clk 0:03:00.9]} 1... c5 {[%clk 0:02:50]} 2. Nf3 {[%clk 0:03:00.7]} 2...
e6 {[%clk 0:02:47.6]} 3. d4 {[%clk 0:03:01]} 3... cxd4 {[%clk 0:02:47.7]} 4.
Nxd4 {[%clk 0:03:01.9]} 4... Nf6 {[%clk 0:02:47.6]} 5. Nc3 {[%clk 0:03:02]} 5...
Nc6 {[%clk 0:02:47.7]} 6. Ndb5 {[%clk 0:03:02.2]} 6... d6 {[%clk 0:02:43.3]} 7.
Bf4 {[%clk 0:03:01.8]} 7... e5 {[%clk 0:02:43.3]} 8. Bg5 {[%clk 0:03:02.2]} 8...
a6 {[%clk 0:02:43.5]} 9. Na3 {[%clk 0:03:02]} 9... b5 {[%clk 0:02:42.6]} 10. Nd5
{[%clk 0:03:02]} 10... Be7 {[%clk 0:02:43.1]} 11. Bxf6 {[%clk 0:03:02.4]} 11...
Bxf6 {[%clk 0:02:42]} 12. c3 {[%clk 0:03:03.3]} 12... O-O {[%clk 0:02:39.1]} 13.
Nc2 {[%clk 0:03:03]} 13... Bg5 {[%clk 0:02:39.2]} 14. a4 {[%clk 0:03:02.7]}
14... Rb8 {[%clk 0:02:35.4]} 15. axb5 {[%clk 0:03:01.2]} 15... axb5 {[%clk
0:02:35.5]} 16. Bd3 {[%clk 0:03:01.9]} 16... Be6 {[%clk 0:02:30.9]} 17. Ncb4
{[%clk 0:02:49.8]} 17... Bxd5 {[%clk 0:02:19.8]} 18. Nxd5 {[%clk 0:02:29.5]}
18... b4 {[%clk 0:02:16.8]} 19. O-O {[%clk 0:02:19]} 19... bxc3 {[%clk
0:02:15.9]} 20. bxc3 {[%clk 0:02:19.9]} 20... Ne7 {[%clk 0:02:14.8]} 21. Bc4
{[%clk 0:02:08.3]} 21... Kh8 {[%clk 0:02:10.2]} 22. Nxe7 {[%clk 0:02:02.4]}
22... Qxe7 {[%clk 0:02:09.4]} 23. Bd5 {[%clk 0:02:01.9]} 23... f5 {[%clk
0:02:04.8]} 24. exf5 {[%clk 0:01:58.6]} 24... Rxf5 {[%clk 0:02:04.6]} 25. Qe2
{[%clk 0:01:37.2]} 25... Rbf8 {[%clk 0:01:51.7]} 0-1

[Event "Early-Titled-Tuesday-Blitz-April-23-2024"]
[Site "Chess.com"]
[Date "2024.04.23"]
[Round "9"]
[White "Grossboss19"]
[Black "biostatistician"]
[Result "0-1"]
[WhiteElo "2628"]
[BlackElo "2749"]
[TimeControl "180+1"]
[EndTime "9:47:31 PDT"]
[Termination "biostatistician won by resignation"]

1. d4 {[%clk 0:02:54.9]} 1... Nf6 {[%clk 0:02:59.5]} 2. c4 {[%clk 0:02:52.8]}
2... g6 {[%clk 0:02:59.6]} 3. Nc3 {[%clk 0:02:52.9]} 3... Bg7 {[%clk 0:03:00.5]}
4. Nf3 {[%clk 0:02:52.3]} 4... O-O {[%clk 0:03:00.3]} 5. g3 {[%clk 0:02:50.9]}
5... b6 {[%clk 0:03:00.6]} 6. Bg2 {[%clk 0:02:46.6]} 6... Bb7 {[%clk 0:03:00.9]}
7. O-O {[%clk 0:02:47.5]} 7... Ne4 {[%clk 0:03:00.5]} 8. Bd2 {[%clk 0:02:45.1]}
8... c5 {[%clk 0:02:59.9]} 9. e3 {[%clk 0:02:41.6]} 9... Nxd2 {[%clk 0:02:54.4]}
10. Qxd2 {[%clk 0:02:40.4]} 10... cxd4 {[%clk 0:02:54.8]} 11. Nxd4 {[%clk
0:02:39.2]} 11... Bxg2 {[%clk 0:02:53.9]} 12. Kxg2 {[%clk 0:02:38.8]} 12... Nc6
{[%clk 0:02:54.5]} 13. Nce2 {[%clk 0:02:34.9]} 13... Rc8 {[%clk 0:02:43.6]} 14.
Rac1 {[%clk 0:02:28.3]} 14... Nxd4 {[%clk 0:02:37.8]} 15. Nxd4 {[%clk
0:02:25.2]} 15... d5 {[%clk 0:02:38.1]} 16. b3 {[%clk 0:02:10.6]} 16... dxc4
{[%clk 0:02:37.2]} 17. bxc4 {[%clk 0:02:10.9]} 17... Qc7 {[%clk 0:02:28.9]} 18.
Qe2 {[%clk 0:02:09.1]} 18... Rfd8 {[%clk 0:02:26.3]} 19. Rfd1 {[%clk 0:02:08.6]}
19... Qc5 {[%clk 0:02:14.7]} 20. Nb3 {[%clk 0:01:58.4]} 20... Qa3 {[%clk
0:02:08.5]} 21. Nd4 {[%clk 0:01:51.7]} 21... Qc5 {[%clk 0:01:40.9]} 22. Nb3
{[%clk 0:01:49]} 22... Qb4 {[%clk 0:01:40.8]} 23. Nd4 {[%clk 0:01:42.1]} 23...
Qa4 {[%clk 0:01:30.5]} 24. h4 {[%clk 0:01:24.5]} 24... Rc5 {[%clk 0:01:19.2]}
25. Nb3 {[%clk 0:01:15]} 25... Rxd1 {[%clk 0:00:53.9]} 26. Nxc5 {[%clk
0:00:57.6]} 26... Qc6+ {[%clk 0:00:48.7]} 0-1

[Event "Early-Titled-Tuesday-Blitz-April-23-2024"]
[Site "Chess.com"]
[Date "2024.04.23"]
[Round "9"]
[White "SaiAgni_98"]
[Black "wqws"]
[Result "1/2-1/2"]
[WhiteElo "2465"]
[BlackElo "2688"]
[TimeControl "180+1"]
[EndTime "9:47:44 PDT"]
[Termination "Game drawn by repetition"]

1. c4 {[%clk 0:03:00.2]} 1... Nf6 {[%clk 0:02:59.8]} 2. g3 {[%clk 0:02:59.4]}
2... g6 {[%clk 0:03:00.1]} 3. Bg2 {[%clk 0:02:59]} 3... Bg7 {[%clk 0:03:01]} 4.
Nc3 {[%clk 0:02:58.9]} 4... O-O {[%clk 0:03:01.3]} 5. Nf3 {[%clk 0:02:58.5]}
5... c5 {[%clk 0:03:01.4]} 6. O-O {[%clk 0:02:56.9]} 6... Nc6 {[%clk 0:03:01.8]}
7. a3 {[%clk 0:02:53]} 7... e5 {[%clk 0:02:56]} 8. d3 {[%clk 0:02:51.6]} 8... h6
{[%clk 0:02:53.9]} 9. Ne1 {[%clk 0:02:47.1]} 9... d6 {[%clk 0:02:53.3]} 10. Nc2
{[%clk 0:02:46.9]} 10... Be6 {[%clk 0:02:52]} 11. Ne3 {[%clk 0:02:47.1]} 11...
Rb8 {[%clk 0:02:49.9]} 12. Rb1 {[%clk 0:02:46.2]} 12... a5 {[%clk 0:02:48.4]}
13. Ned5 {[%clk 0:02:38.2]} 13... Kh7 {[%clk 0:02:45.2]} 14. b4 {[%clk 0:02:31]}
14... axb4 {[%clk 0:02:44.2]} 15. axb4 {[%clk 0:02:30.9]} 15... cxb4 {[%clk
0:02:40.8]} 16. Nxb4 {[%clk 0:02:30]} 16... Nxb4 {[%clk 0:02:41.1]} 17. Rxb4
{[%clk 0:02:30.8]} 17... d5 {[%clk 0:02:38.1]} 18. cxd5 {[%clk 0:02:20]} 18...
Nxd5 {[%clk 0:02:36.7]} 19. Nxd5 {[%clk 0:02:17.9]} 19... Bxd5 {[%clk
0:02:37.6]} 20. Bxd5 {[%clk 0:02:18.6]} 20... Qxd5 {[%clk 0:02:38]} 21. Qb3
{[%clk 0:02:19.5]} 21... Qxb3 {[%clk 0:02:37.8]} 22. Rxb3 {[%clk 0:02:20.4]}
22... b5 {[%clk 0:02:38]} 23. Ba3 {[%clk 0:02:15]} 23... Rfc8 {[%clk 0:02:36.6]}
24. Rfb1 {[%clk 0:02:14.9]} 24... Rc2 {[%clk 0:02:35.1]} 25. Kf1 {[%clk
0:02:13.2]} 25... h5 {[%clk 0:02:08.8]} 26. h4 {[%clk 0:02:05.4]} 26... Ra8
{[%clk 0:02:03.6]} 27. Bd6 {[%clk 0:00:59.5]} 27... Raa2 {[%clk 0:02:01.8]} 28.
Re1 {[%clk 0:00:59.5]} 28... Rcb2 {[%clk 0:01:59.9]} 29. Rxb2 {[%clk 0:00:56.8]}
29... Rxb2 {[%clk 0:02:00.8]} 30. Rc1 {[%clk 0:00:55.5]} 30... b4 {[%clk
0:01:54.6]} 31. Rc7 {[%clk 0:00:50.1]} 31... Kg8 {[%clk 0:01:31.2]} 32. Rc8+
{[%clk 0:00:45.7]} 32... Kh7 {[%clk 0:01:30.9]} 33. Rc7 {[%clk 0:00:45.7]} 33...
Kg8 {[%clk 0:01:24.9]} 34. Rc8+ {[%clk 0:00:44.4]} 34... Kh7 {[%clk 0:01:23.7]}
35. Rc7 {[%clk 0:00:45.3]} 1/2-1/2